fUST/lending_fUST_20240213
["ID","MTS","AMOUNT","RATE_DAILY","PERIOD"]
[313898906,1707787841205,-335.8381133,0.00025,2]
[313898907,1707787841215,-280.70858126,0.00026998,2]
[313898908,1707787841224,-7412.74701348,0.00026999,2]
[313898909,1707787841233,-200.0,0.00027,4]
[313898910,1707787841242,-3062.68810289,0.00027,2]
[313898911,1707787841251,-200.0,0.00027499,15]
[313898912,1707787841261,-298.70413724,0.000279,2]
[313898913,1707787841270,-154.95351395,0.00028,2]
[313898914,1707787841280,-155.0,0.0002889,2]
[313898915,1707787841289,-1717.3410849,0.00028999,2]
[313898916,1707787841298,-303.74761441,0.00029,3]
[313898917,1707787841307,-183.4562463,0.00029789,10]
[313898918,1707787841316,-7078.16124969,0.0002979,2]
[313898919,1707787841325,-159.45908485,0.000298,2]
[313898920,1707787841334,-25799.07593467,0.0002985,2]
[313898921,1707787841346,-1000.70693113,0.0002985,2]
[313898922,1707787841360,-5757.4165659,0.0002985,2]
[313898923,1707787841375,-3171.72312632,0.0002985,2]
[313898924,1707787841390,-13036.22535313,0.0002985,2]
[313899060,1707789034571,-155.54015347,0.00018483,2]
[313899062,1707789034580,-154.95351395,0.00018483,2]
[313899064,1707789034590,-563.70112892,0.00018484,2]
[313899066,1707789034601,-181.70308588,0.00018484,2]
[313899068,1707789034611,-175.87607828,0.00018485,2]
[313899070,1707789034620,-907.14192831,0.00018485,2]
[313899072,1707789034629,-247.46530507,0.00018485,2]
[313899074,1707789034639,-159.49199413,0.00018486,2]
[313899076,1707789034648,-154.95351395,0.00018487,2]
[313899077,1707789034657,-154.95351395,0.00018487,2]
[313899079,1707789034666,-2608.46910477,0.00018487,2]
[313899081,1707789034676,-500.0,0.00018488,2]
[313899083,1707789034685,-7989.76732382,0.00018488,2]
[313899085,1707789034695,-596.09009018,0.00018489,2]
[313899165,1707789038254,-535.94317616,0.00018483,2]
[313899167,1707789038267,-2084.78168138,0.00018489,2]
[313899175,1707789038334,-22219.12822844,0.00018489,2]
[313899177,1707789038344,-154.95351395,0.00019143,3]
[313899179,1707789038354,-262.11608468,0.00019143,2]
[313899180,1707789038363,-166.666666,0.00019178,2]
[313899183,1707789038374,-166.666666,0.0001966,2]
[313899185,1707789038383,-166.666666,0.00020141,2]
[313899187,1707789038393,-200.0,0.00020336,2]
[313899189,1707789038403,-166.666666,0.00020623,2]
[313899191,1707789038412,-800.33470998,0.00020883,5]
[313899193,1707789038422,-230.0445602,0.00021,2]
[313899195,1707789038431,-166.666666,0.00021104,2]
[313899197,1707789038442,-166.666666,0.00021585,2]
[313899198,1707789038452,-14984.00318478,0.00021994,2]
[313899200,1707789038462,-875.88407018,0.00021996,2]
[313899202,1707789038471,-247.43298024,0.00022,4]
[313899203,1707789038481,-326.75768336,0.00022,2]
[313899204,1707789038491,-280.0,0.00022369,7]
[313899205,1707789038501,-265.20381334,0.0002289,2]
[313899206,1707789038510,-5684.11,0.0002297,3]
[313899207,1707789038522,-8111.03,0.0002298,3]
[313899208,1707789038531,-151.0,0.0002299,2]
[313899209,1707789038541,-151.0,0.0002299,2]
[313899211,1707789038550,-202.677512,0.0002299,2]
[313899212,1707789038559,-343.447642,0.0002299,2]
[313899213,1707789038569,-343.447642,0.0002299,2]
[313899214,1707789038578,-9733.24,0.0002299,3]
[313899215,1707789038587,-9977.37930028,0.00023,2]
[313899216,1707789038597,-1264.3036604,0.00023,2]
[313899217,1707789038607,-151.0,0.00023,2]
[313899218,1707789038616,-151.0,0.00023,2]
[313899219,1707789038627,-343.447642,0.00023,2]
[313899220,1707789038637,-343.447642,0.00023,2]
[313899221,1707789038646,-151.0,0.00023194,2]
[313899222,1707789038656,-998.656612,0.00023194,2]
[313899223,1707789038665,-998.656612,0.00023194,2]
[313899224,1707789038675,-500.0,0.00023204,2]
[313899225,1707789038684,-512.10563876,0.00023204,2]
[313899226,1707789038694,-500.0,0.00023204,2]
[313899227,1707789038703,-500.0,0.00023204,2]
[313899228,1707789038712,-500.0,0.00023204,2]
[313899229,1707789038722,-501.18479256,0.00023204,2]
[313899230,1707789038732,-202.93263682,0.00023204,2]
[313899231,1707789038741,-500.0,0.00023204,2]
[313899232,1707789038751,-500.0,0.00023204,2]
[313899233,1707789038760,-500.0,0.00023204,2]
[313899234,1707789038771,-500.0,0.00023204,2]
[313899235,1707789038782,-500.0,0.00023204,2]
[313899236,1707789038791,-303.78823225,0.00023204,2]
[313899237,1707789038803,-500.0,0.00023204,2]
[313899238,1707789038812,-571.17392006,0.00023204,2]
[313899239,1707789038821,-500.0,0.00023204,2]
[313899240,1707789038831,-500.0,0.00023204,2]
[313899241,1707789038842,-500.0,0.00023204,2]
[313899242,1707789038852,-450.32820639,0.00023204,2]
[313899243,1707789038861,-500.0,0.00023204,2]
[313899244,1707789038871,-500.0,0.00023204,2]
[313899245,1707789038880,-500.0,0.00023204,2]
[313899246,1707789038889,-500.0,0.00023204,2]
[313899247,1707789038898,-500.0,0.00023204,2]
[313899248,1707789038908,-500.0,0.00023204,2]
[313899249,1707789038917,-500.0,0.00023204,2]
[313899250,1707789038926,-500.0,0.00023204,2]
[313899251,1707789038936,-500.0,0.00023204,2]
[313899252,1707789038945,-500.0,0.00023204,2]
[313899253,1707789038955,-500.0,0.00023204,2]
[313899254,1707789038964,-500.0,0.00023204,2]
[313899255,1707789038974,-500.0,0.00023204,2]
[313899256,1707789038983,-500.0,0.00023204,2]
[313899257,1707789038993,-500.0,0.00023204,2]
[313899258,1707789039002,-500.0,0.00023204,2]
[313899259,1707789039012,-593.92923223,0.00023204,2]
[313899260,1707789039021,-500.0,0.00023204,2]
[313899261,1707789039031,-500.0,0.00023204,2]
[313899262,1707789039040,-500.0,0.00023204,2]
[313899263,1707789039049,-649.98887042,0.00023204,2]
[313899264,1707789039059,-500.0,0.00023204,2]
[313899265,1707789039068,-240.67125526,0.00023204,2]
[313899266,1707789039078,-500.0,0.00023204,2]
[313899267,1707789039088,-500.0,0.00023204,2]
[313899268,1707789039097,-500.0,0.00023204,2]
[313899269,1707789039106,-500.0,0.00023204,2]
[313899270,1707789039115,-500.0,0.00023204,2]
[313899271,1707789039124,-500.0,0.00023204,2]
[313899272,1707789039133,-500.0,0.00023204,2]
[313899273,1707789039142,-500.0,0.00023204,2]
[313899274,1707789039151,-500.0,0.00023204,2]
[313899275,1707789039160,-500.0,0.00023204,2]
[313899276,1707789039169,-500.0,0.00023204,2]
[313899277,1707789039179,-500.0,0.00023204,2]
[313899278,1707789039188,-500.0,0.00023204,2]
[313899279,1707789039197,-500.0,0.00023204,2]
[313899280,1707789039206,-500.0,0.00023204,2]
[313899281,1707789039215,-350.0,0.00023204,2]
[313899282,1707789039224,-500.0,0.00023204,2]
[313899283,1707789039235,-500.0,0.00023204,2]
[313899284,1707789039246,-500.0,0.00023204,2]
[313899285,1707789039255,-500.0,0.00023204,2]
[313899286,1707789039265,-500.0,0.00023204,2]
[313899287,1707789039275,-500.0,0.00023204,2]
[313899288,1707789039284,-500.0,0.00023204,2]
[313899289,1707789039294,-500.0,0.00023204,2]
[313899290,1707789039303,-500.0,0.00023204,2]
[313899291,1707789039313,-500.0,0.00023204,2]
[313899292,1707789039322,-500.0,0.00023204,2]
[313899293,1707789039336,-500.0,0.00023204,2]
[313899294,1707789039348,-500.0,0.00023204,2]
[313899295,1707789039357,-500.0,0.00023204,2]
[313899296,1707789039368,-500.0,0.00023204,2]
[313899297,1707789039377,-500.0,0.00023204,2]
[313899298,1707789039386,-500.0,0.00023204,2]
[313899299,1707789039395,-500.0,0.00023204,2]
[313899300,1707789039405,-500.0,0.00023204,2]
[313899301,1707789039415,-500.0,0.00023204,2]
[313899302,1707789039425,-500.0,0.00023204,2]
[313899303,1707789039435,-500.0,0.00023204,2]
[313899304,1707789039444,-500.0,0.00023204,2]
[313899305,1707789039455,-500.0,0.00023204,2]
[313899306,1707789039466,-500.0,0.00023204,2]
[313899307,1707789039476,-500.0,0.00023204,2]
[313899308,1707789039485,-500.0,0.00023204,2]
[313899309,1707789039494,-500.0,0.00023204,2]
[313899310,1707789039504,-500.0,0.00023204,2]
[313899311,1707789039513,-500.0,0.00023204,2]
[313899312,1707789039523,-500.0,0.00023204,2]
[313899313,1707789039532,-500.0,0.00023204,2]
[313899314,1707789039542,-500.0,0.00023204,2]
[313899315,1707789039551,-500.0,0.00023204,2]
[313899316,1707789039560,-500.0,0.00023204,2]
[313899317,1707789039569,-500.0,0.00023204,2]
[313899318,1707789039578,-500.0,0.00023204,2]
[313899319,1707789039587,-500.0,0.00023204,2]
[313899320,1707789039596,-161.79167512,0.00023204,2]
[313899321,1707789039606,-500.0,0.00023204,2]
[313899322,1707789039615,-500.0,0.00023204,2]
[313899323,1707789039625,-500.0,0.00023204,2]
[313899324,1707789039634,-500.0,0.00023204,2]
[313899325,1707789039643,-500.0,0.00023204,2]
[313899326,1707789039652,-500.0,0.00023204,2]
[313899327,1707789039661,-500.0,0.00023204,2]
[313899328,1707789039671,-500.0,0.00023204,2]
[313899329,1707789039680,-500.0,0.00023204,2]
[313899330,1707789039689,-500.0,0.00023204,2]
[313899331,1707789039699,-151.0,0.00023204,2]
[313899332,1707789039709,-151.0,0.00023204,2]
[313899333,1707789039718,-151.0,0.00023204,2]
[313899334,1707789039727,-151.0,0.00023204,2]
[313899335,1707789039736,-151.0,0.00023204,2]
[313899336,1707789039746,-151.0,0.00023204,2]
[313899337,1707789039755,-151.0,0.00023204,2]
[313899338,1707789039764,-151.0,0.00023204,2]
[313899339,1707789039773,-151.0,0.00023204,2]
[313899340,1707789039783,-151.0,0.00023204,2]
[313899341,1707789039793,-151.0,0.00023204,2]
[313899342,1707789039802,-151.0,0.00023204,2]
[313899343,1707789039811,-151.0,0.00023204,2]
[313899344,1707789039820,-283.460118,0.00023204,2]
[313899345,1707789039829,-151.0,0.00023204,2]
[313899346,1707789039838,-151.0,0.00023204,2]
[313899347,1707789039847,-151.0,0.00023204,2]
[313899348,1707789039856,-151.0,0.00023204,2]
[313899349,1707789039865,-151.0,0.00023204,2]
[313899350,1707789039874,-151.0,0.00023204,2]
[313899351,1707789039883,-151.0,0.00023204,2]
[313899352,1707789039892,-343.447642,0.00023204,2]
[313899353,1707789039901,-343.447642,0.00023204,2]
[313899354,1707789039910,-343.447642,0.00023204,2]
[313899355,1707789039919,-343.447642,0.00023204,2]
[313899356,1707789040032,-343.447642,0.00023204,2]
[313899357,1707789040041,-343.447642,0.00023204,2]
[313899358,1707789040050,-343.447642,0.00023204,2]
[313899359,1707789040059,-343.447642,0.00023204,2]
[313899360,1707789040069,-343.447642,0.00023204,2]
[313899361,1707789040078,-343.447642,0.00023204,2]
[313899362,1707789040086,-343.447642,0.00023204,2]
[313899363,1707789040095,-343.447642,0.00023204,2]
[313899364,1707789040105,-343.447642,0.00023204,2]
[313899365,1707789040114,-343.447642,0.00023204,2]
[313899367,1707789040123,-1068.209377,0.00023204,2]
[313899369,1707789040132,-1068.209377,0.00023204,2]
[313899370,1707789040141,-1068.209377,0.00023204,2]
[313899371,1707789040149,-1068.209377,0.00023204,2]
[313899372,1707789040158,-1068.209377,0.00023204,2]
[313899373,1707789040167,-1068.209377,0.00023204,2]
[313899374,1707789040176,-1068.209377,0.00023204,2]
[313899375,1707789040185,-1068.209377,0.00023204,2]
[313899376,1707789040194,-1068.209377,0.00023204,2]
[313899377,1707789040204,-1068.209377,0.00023204,2]
[313899378,1707789040213,-1068.209377,0.00023204,2]
[313899379,1707789040222,-1068.209377,0.00023204,2]
[313899380,1707789040232,-1068.209377,0.00023204,2]
[313899381,1707789040241,-1068.209377,0.00023204,2]
[313899382,1707789040252,-998.656612,0.00023204,2]
[313899383,1707789040261,-998.656612,0.00023204,2]
[313899384,1707789040271,-998.656612,0.00023204,2]
[313899385,1707789040281,-998.656612,0.00023204,2]
[313899386,1707789040291,-998.656612,0.00023204,2]
[313899388,1707789040300,-998.656612,0.00023204,2]
[313899389,1707789040309,-998.656612,0.00023204,2]
[313899390,1707789040317,-998.656612,0.00023204,2]
[313899391,1707789040327,-998.656612,0.00023204,2]
[313899392,1707789040336,-998.656612,0.00023204,2]
[313899393,1707789040345,-998.656612,0.00023204,2]
[313899394,1707789040354,-998.656612,0.00023204,2]
[313899395,1707789040363,-998.656612,0.00023204,2]
[313899396,1707789040373,-998.656612,0.00023204,2]
[313899397,1707789040382,-384.97940022,0.00023205,2]
[313899398,1707789040391,-50000.0,0.00023205,2]
[313899399,1707789040400,-50000.0,0.00023205,2]
[313899400,1707789040409,-75138.47077958,0.00023205,2]
[313899401,1707789040419,-159.310104,0.00023205,2]
[313899402,1707789040428,-151.0,0.00023205,2]
[313899403,1707789040437,-151.0,0.00023205,2]
[313899404,1707789040446,-153.016734,0.00023205,2]
[313899405,1707789040455,-151.0,0.00023205,2]
[313899407,1707789040464,-343.447642,0.00023205,2]
[313899408,1707789040473,-343.447649,0.00023205,2]
[313899409,1707789040482,-1068.209377,0.00023205,2]
[313899410,1707789040492,-1068.209377,0.00023205,2]
[313899411,1707789040501,-1068.209377,0.00023205,2]
[313899412,1707789040509,-1068.209377,0.00023205,2]
[313899413,1707789040519,-1068.209377,0.00023205,2]
[313899414,1707789040528,-1068.209379,0.00023205,2]
[313899415,1707789040537,-998.656612,0.00023205,2]
[313899416,1707789040546,-998.656612,0.00023205,2]
[313899417,1707789040556,-998.656612,0.00023205,2]
[313899418,1707789040565,-998.656622,0.00023205,2]
[313899419,1707789040574,-265.20381334,0.00023909,2]
[313899420,1707789040583,-391.0,0.00024606,7]
[313899421,1707789040592,-505.35138865,0.00024657,2]
[313899422,1707789040601,-500.0,0.00024657,2]
[313899423,1707789040609,-525.04078948,0.00024657,2]
[313899424,1707789040619,-594.18300278,0.00024657,2]
[313899425,1707789040628,-610.00896649,0.00024657,2]
[313899426,1707789040637,-529.11781571,0.00024657,2]
[313899427,1707789040647,-547.85102173,0.00024657,2]
[313899428,1707789040656,-257.70153439,0.00024657,2]
[313899429,1707789040665,-534.38112313,0.00024657,2]
[313899430,1707789040674,-583.1492974,0.00024657,2]
[313899431,1707789040683,-166.49531438,0.00024657,2]
[313899432,1707789040692,-528.65144142,0.00024657,2]
[313899433,1707789040701,-533.98602728,0.00024657,2]
[313899434,1707789040710,-265.20381334,0.00024928,2]
[313899435,1707789040719,-521.26856815,0.00024931,2]
[313899436,1707789040728,-239.38207,0.0002499,2]
[313899437,1707789040738,-239.38207,0.0002499,2]
[313899438,1707789040747,-7412.74701348,0.00025,2]
[313899439,1707789040756,-239.38207,0.00025,2]
[313899440,1707789040766,-239.38207,0.00025,2]
[313899441,1707789040775,-335.8381133,0.00025,2]
[313899442,1707789040785,-200.0,0.00025479,2]
[313899443,1707789040794,-265.20381334,0.00025947,2]
[313899444,1707789040803,-280.70858126,0.00026,2]
[313899445,1707789040813,-152.028064,0.00026421,2]
[313899446,1707789040822,-173.718575,0.00026421,2]
[313899447,1707789040834,-164.857001,0.00026421,2]
[313899448,1707789040843,-152.028064,0.00026751,2]
[313899449,1707789040852,-1091.26633897,0.00026809,2]
[313899450,1707789040861,-155.0123189,0.00026865,2]
[313899451,1707789040870,-265.20381334,0.00026966,2]
[313899452,1707789040880,-3062.904902,0.00027,2]
[313899453,1707789040890,-45093.394303,0.00027066,2]
[313899454,1707789040899,-239.38207,0.00027066,2]
[313899455,1707789040908,-239.38207,0.00027066,2]
[313899456,1707789040918,-200.0,0.00027067,15]
[313899457,1707789040928,-348.0,0.00027067,15]
[313899458,1707789040937,-173.718575,0.00027081,2]
[313899459,1707789040946,-152.028064,0.00027081,2]
[313899460,1707789040955,-155.0,0.00027397,2]
[313899461,1707789040964,-500.0,0.00027397,2]
[313899462,1707789040974,-150.17369625,0.00027397,2]
[313899463,1707789040983,-616.472937,0.00027397,2]
[313899464,1707789040993,-152.028064,0.00027412,2]
[313899465,1707789041002,-503.09336206,0.00027534,2]
[313899466,1707789041012,-173.718575,0.00027742,2]
[313899467,1707789041022,-152.028064,0.00027742,2]
[313899468,1707789041031,-253.63929222,0.0002775,2]
[313899469,1707789041040,-1717.3410849,0.00028,2]
[313899470,1707789041049,-154.95351395,0.00028,2]
[313899471,1707789041058,-2000.0,0.00028,2]
[313899472,1707789041066,-2000.0,0.00028,3]
[313899473,1707789041075,-2000.0,0.0002801,2]
[313899474,1707789041084,-2000.0,0.0002802,2]
[313899475,1707789041093,-2000.0,0.0002803,2]
[313899476,1707789041102,-2000.0,0.0002804,2]
[313899477,1707789041111,-2000.0,0.0002805,2]
[313899478,1707789041120,-2000.0,0.0002806,2]
[313899479,1707789041130,-2000.0,0.0002807,2]
[313899480,1707789041139,-2000.0,0.0002808,2]
[313899481,1707789041149,-2000.0,0.0002809,2]
[313899482,1707789041159,-2000.0,0.000281,2]
[313899483,1707789041168,-2000.0,0.0002811,2]
[313899484,1707789041177,-2000.0,0.0002812,2]
[313899485,1707789041186,-2000.0,0.0002813,2]
[313899486,1707789041195,-2000.0,0.0002814,2]
[313899487,1707789041203,-2000.0,0.0002815,2]
[313899488,1707789041213,-2000.0,0.0002816,2]
[313899489,1707789041222,-2000.0,0.0002817,2]
[313899490,1707789041230,-2000.0,0.0002818,2]
[313899491,1707789041242,-2000.0,0.0002819,2]
[313899492,1707789041251,-2000.0,0.000282,2]
[313899493,1707789041261,-2000.0,0.0002821,2]
[313899494,1707789041273,-2000.0,0.0002822,2]
[313899495,1707789041287,-3123.695312,0.0002823,2]
[313899496,1707789041297,-300.0,0.00028451,2]
[313899497,1707789041307,-7509.89076997,0.00028479,5]
[313899498,1707789041318,-155.0,0.00028767,2]
[313899499,1707789041328,-300.0,0.00028782,2]
[313899500,1707789041337,-1069.56576862,0.0002886,2]
[313899501,1707789041348,-303.7557167,0.00029,3]
[313899502,1707789041358,-183.4562463,0.00029,10]
[313899503,1707789041367,-900000.0,0.00029,3]
[313899504,1707789041376,-300.0,0.00029114,2]
[313899505,1707789041386,-300.0,0.00029445,2]
[313899506,1707789041395,-233.7536,0.00029751,2]
[313899507,1707789041405,-200.0,0.00029773,15]
[313899508,1707789041415,-200.0,0.00029773,15]
[313899509,1707789041425,-368.0,0.00029773,15]
[313899510,1707789041433,-300.0,0.00029777,2]
[313899511,1707789041443,-239.38207,0.00029788,2]
[313899512,1707789041452,-239.38207,0.00029788,2]
[313899513,1707789041461,-155.17806618,0.00029788,2]
[313899514,1707789041470,-580.14944654,0.00029788,2]
[313899515,1707789041480,-743.70022611,0.00029788,2]
[313899516,1707789041490,-1186.52728884,0.00029788,2]
[313899517,1707789041499,-209.52458398,0.00029788,2]
[313899518,1707789041508,-309.82577915,0.00029788,2]
[313899519,1707789041519,-239.38207,0.00029789,2]
[313899520,1707789041528,-239.38207,0.00029789,2]
[313899521,1707789041538,-239.38207,0.00029789,2]
[313899522,1707789041547,-239.38207,0.00029789,2]
[313899523,1707789041556,-239.38207,0.00029789,2]
[313899524,1707789041566,-239.38207,0.00029789,2]
[313899525,1707789041576,-239.38207,0.00029789,2]
[313899526,1707789041586,-239.38207,0.00029789,2]
[313899527,1707789041595,-239.38207,0.00029789,2]
[313899528,1707789041605,-239.38207,0.00029789,2]
[313899529,1707789041614,-210.13553924,0.0002979,3]
[313899530,1707789041625,-239.38207,0.0002979,2]
[313899531,1707789041634,-239.382072,0.0002979,2]
[313899532,1707789041644,-267543.20618214,0.0002979,2]
[313899533,1707789041792,-154.95351395,0.00018482,3]
[313899534,1707789041801,-2846.50890459,0.0002299,3]
[313899535,1707789041813,-3912.69109541,0.0002299,3]
[313899536,1707789041821,-1131.3796314,0.0002979,2]
[313899537,1707789041839,-519.27266472,0.0002979,2]
[313899538,1707789041851,-6806.14152174,0.0002979,2]
[313899539,1707789041860,-25967.67926781,0.00029791,2]
[313899540,1707789041870,-2000.0,0.000298,2]
[313899541,1707789041879,-2000.0,0.0002981,2]
[313899542,1707789041888,-2000.0,0.0002982,2]
[313899543,1707789041897,-2000.0,0.0002983,2]
[313899544,1707789041906,-2000.0,0.0002984,2]
[313899545,1707789041916,-346.8139299,0.00029849,2]
[313899546,1707789041925,-198.15025777,0.00029849,2]
[313899547,1707789041934,-500.0,0.00029849,2]
[313899548,1707789041942,-203.10515458,0.00029849,2]
[313899549,1707789041951,-261.07444455,0.00029849,2]
[313899550,1707789041960,-646.94035777,0.00029849,2]
[313899551,1707789041969,-500.0,0.00029849,2]
[313899552,1707789041978,-500.0,0.00029849,2]
[313899553,1707789041987,-500.0,0.00029849,2]
[313899554,1707789041996,-500.0,0.00029849,2]
[313899555,1707789042005,-500.0,0.00029849,2]
[313899556,1707789042014,-500.0,0.00029849,2]
[313899557,1707789042024,-500.0,0.00029849,2]
[313899558,1707789042033,-276.23427907,0.00029849,2]
[313899559,1707789042042,-500.0,0.00029849,2]
[313899560,1707789042051,-500.0,0.00029849,2]
[313899561,1707789042060,-410.67154104,0.00029849,2]
[313899562,1707789042069,-419.80847148,0.00029849,2]
[313899563,1707789042078,-405.16610009,0.00029849,2]
[313899564,1707789042087,-507245.49217794,0.0002985,2]
[313899601,1707789043110,-5005.0,0.0002985,2]
[313899681,1707790232230,-6812.76108681,0.00020972,2]
[313899682,1707790232241,-154.95351395,0.00020973,4]
[313899683,1707790232251,-294.82619206,0.00020974,2]
[313899684,1707790232260,-37099.20039005,0.00020999,2]
[313899685,1707790232269,-233.84198487,0.00021,2]
[313899686,1707790232278,-13770.21356914,0.00021,2]
[313899687,1707790232287,-222.2461938,0.00021103,2]
[313899688,1707790232296,-368.57620927,0.00022,4]
[313899689,1707790232305,-4893.74805846,0.00022,2]
[313899751,1707790241531,-1994.70566302,0.00022,2]
[313900444,1707791438500,-175.87607828,0.00019251,2]
[313900445,1707791438510,-154.95351395,0.00019252,3]
[313900446,1707791438519,-28.81946762,0.00019252,2]
[313900447,1707791438554,-161.66447433,0.00019251,2]
[313900448,1707791438564,-623.29582828,0.00019252,2]
[313900449,1707791438573,-154.95351395,0.00019252,2]
[313900450,1707791438582,-181.70308588,0.00019253,2]
[313900451,1707791438592,-214.26436809,0.00019253,2]
[313900452,1707791438601,-154.95351395,0.00019253,2]
[313900453,1707791438610,-2721.11261986,0.00019254,5]
[313900454,1707791438620,-535.94317616,0.00019255,2]
[313900455,1707791438629,-24731.492292,0.00019261,2]
[313900456,1707791438639,-508.4608257,0.00019842,2]
[313900457,1707791438648,-472.035133,0.000199,2]
[313900458,1707791438659,-200.0,0.00021186,7]
[313900459,1707791438668,-4930.42937148,0.00021997,2]
[313900460,1707791438678,-818.30404445,0.00022,2]
[313900461,1707791438687,-300.0,0.00022,2]
[313900462,1707791438696,-1833.23081088,0.00022,2]
[313900463,1707791438705,-2092.8365796,0.00022,2]
[313900464,1707791438716,-276.82742723,0.00022,2]
[313900465,1707791438725,-7454.13102087,0.0002259,2]
[313900466,1707791438735,-1264.3036604,0.00023,2]
[313900467,1707791438744,-3714.33,0.00023215,3]
[313900468,1707791438754,-364.74734659,0.00023217,3]
[313900469,1707791438763,-9977.37930028,0.00023224,2]
[313900470,1707791438773,-5348.63,0.00023225,3]
[313900471,1707791438782,-4457.19,0.00023225,3]
[313900472,1707791438791,-8784.6176949,0.00023235,2]
[313900473,1707791438802,-543.38412337,0.00023235,2]
[313900474,1707791438811,-2196.15442372,0.00023235,2]
[313900475,1707791438820,-280.0,0.00023305,7]
[313900476,1707791438829,-6418.36,0.0002377,3]
[313900477,1707791438838,-14677.0884462,0.0002378,2]
[313900478,1707791438847,-154.01369217,0.00024557,2]
[313900479,1707791438856,-506.77915557,0.00024657,2]
[313900480,1707791438866,-337.64713959,0.00024657,2]
[313900481,1707791438875,-507.51320869,0.00024657,2]
[313900482,1707791438884,-503.84017535,0.00024657,2]
[313900483,1707791438893,-525.8700948,0.00024657,2]
[313900484,1707791438902,-506.84957774,0.00024657,2]
[313900485,1707791438912,-508.88154438,0.00024657,2]
[313900486,1707791438922,-517.54940803,0.00024657,2]
[313900487,1707791438931,-507.7997587,0.00024657,2]
[313900488,1707791438941,-509.46491034,0.00024657,2]
[313900489,1707791438950,-505.41210779,0.00024657,2]
[313900490,1707791438960,-500.0,0.00024657,2]
[313900491,1707791438973,-559.51807238,0.00024657,2]
[313900492,1707791438982,-503.51702604,0.00024657,2]
[313900493,1707791438991,-274.59661165,0.00024657,2]
[313900494,1707791439001,-506.13702233,0.00024657,2]
[313900495,1707791439011,-500.0,0.00024657,2]
[313900496,1707791439020,-500.0,0.00024657,2]
[313900497,1707791439029,-500.0,0.00024657,2]
[313900498,1707791439041,-282.87243093,0.00024657,2]
[313900499,1707791439052,-506.41518247,0.00024657,2]
[313900500,1707791439061,-506.33838939,0.00024657,2]
[313900501,1707791439070,-506.74794498,0.00024657,2]
[313900502,1707791439079,-500.0,0.00024657,2]
[313900503,1707791439089,-501.48993647,0.00024657,2]
[313900504,1707791439098,-508.10983154,0.00024657,2]
[313900505,1707791439107,-542.87223654,0.00024657,2]
[313900506,1707791439117,-500.0,0.00024657,2]
[313900507,1707791439126,-509.97793646,0.00024657,2]
[313900508,1707791439136,-500.0,0.00024657,2]
[313900509,1707791439145,-515.92371889,0.00024657,2]
[313900510,1707791439155,-500.0,0.00024657,2]
[313900511,1707791439164,-500.0,0.00024657,2]
[313900512,1707791439173,-504.73711651,0.00024657,2]
[313900513,1707791439183,-398.17785236,0.00024657,2]
[313900514,1707791439192,-500.0,0.00024657,2]
[313900515,1707791439201,-500.0,0.00024657,2]
[313900516,1707791439211,-514.62482795,0.00024657,2]
[313900517,1707791439220,-504.74010161,0.00024657,2]
[313900518,1707791439229,-261.33893086,0.00024657,2]
[313900519,1707791439239,-505.10732354,0.00024657,2]
[313900520,1707791439249,-509.24188954,0.00024657,2]
[313900521,1707791439258,-500.0,0.00024657,2]
[313900522,1707791439268,-506.40871426,0.00024657,2]
[313900523,1707791439277,-518.90508541,0.00024657,2]
[313900524,1707791439286,-503.29583797,0.00024657,2]
[313900525,1707791439297,-500.0,0.00024657,2]